Cogmind - Beta 15 @@@ ROGUE MODE // 2025.05.09 @ 09:24:55 Player: Metacraft Result: Destroyed by G-47 Trooper with Particle Gun Performance ------------- Evolutions (2) 1000 Regions Visited (4) 800 Robots Destroyed (76) 380 Value Destroyed (1850) 1850 Prototype IDs (1) 20 Alien Tech Used (0) 0 Bonus (97) 97 TOTAL SCORE: 4147 Bonus ------- High Alert Combat Kills 37 Follower Combat Kills 60 Cogmind --------- Core Integrity 0/550 Matter 270/300 Energy 30/100 System Corruption 0% Temperature Cool (9) Movement Core (800) Ox15 Location -8/Materials Parts ------- > --- POWER (1) -------- (None) > --- PROPULSION (4) --- (None) > --- UTILITY (4) ------ High-capacity Storage Unit Structural Scanner Machine Analyzer > --- WEAPON (2) ------- Heavy Particle Gun Heavy Particle Gun > --- INVENTORY (20) --- Deuterium Engine Light Deuterium Engine Aluminum Leg Carbon-fiber Leg Heat Sink Improved Heat Sink Large Storage Unit High-capacity Storage Unit Large Matter Pod (150) High-capacity Matter Pod (200) Improved Signal Interpreter Improved Targeting Computer Trap Extractor (0/4) Heavy Assault Rifle Improved Light Cannon Grenade Launcher Rocket Launcher Improved Datajack Peak State ------------ > --- POWER ------------ Light Ion Engine > --- PROPULSION ------- Light Treads Light Treads Light Treads > --- UTILITY ---------- High-capacity Storage Unit Structural Scanner Machine Analyzer Utility Shielding > --- WEAPON ----------- Heavy Particle Gun Heavy Assault Rifle > --- INVENTORY -------- Ion Engine Deuterium Engine Light Deuterium Engine Aluminum Leg Heat Sink Improved Heat Sink Large Storage Unit High-capacity Storage Unit Large Matter Pod High-capacity Matter Pod Improved Signal Interpreter Improved Targeting Computer Trap Extractor Heavy Particle Gun Heavy Particle Gun Heavy Assault Rifle Improved Light Cannon Grenade Launcher Rocket Launcher Improved Datajack [Rating: 20] Favorites ----------- Power Ion Engine Engine Ion Engine Power Core Light Nuclear Core Propulsion Light Treads Treads Light Treads Leg Aluminum Leg Wheel Compact Wheel Utility Structural Scanner Device Structural Scanner Storage High-capacity Storage Unit Processor Machine Analyzer Protection Medium Armor Plating Weapon Heavy Assault Rifle Energy Gun Heavy Particle Gun Energy Cannon Beam Cannon Ballistic Gun Heavy Assault Rifle Ballistic Cannon Improved Light Cannon Launcher Grenade Launcher Impact Weapon Maul Build | -11 -10 -10 -9 -8 ------- Run | Yrd Mat Min Mat Mat Slots Evolved 4 | . . . 2 2 Power . | . . . . . Propulsion 2 | . . . 1 1 Utility 2 | . . . 1 1 Weapon . | . . . . . Parts Attached 40 | 7 6 2 17 8 Power 7 | 1 1 1 2 2 Engine 6 | 1 1 . 2 2 Core 1 | . . 1 . . Reactor . | . . . . . Propulsion 13 | 2 2 . 8 1 Treads 9 | . 2 . 6 1 Leg 2 | . . . 2 . Wheel 2 | 2 . . . . Hover . | . . . . . Flight . | . . . . . Utility 9 | 2 1 . 5 1 Device 2 | 1 . . 1 . Storage 3 | 1 1 . 1 . Processor 1 | . . . . 1 Hackware . | . . . . . Protection 3 | . . . 3 . Artifact . | . . . . . Weapon 11 | 2 2 1 2 4 Energy Gun 3 | . . . . 3 Energy Cannon 1 | . 1 . . . Ballistic Gun 4 | 2 . . 1 1 Ballistic Cannon 1 | . . . 1 . Launcher 1 | . . 1 . . Special Weapon . | . . . . . Impact Weapon 1 | . 1 . . . Slashing Weapon . | . . . . . Piercing Weapon . | . . . . . Special Melee Weapon . | . . . . . Unidentified Prototypes 1 | . . . . 1 Parts Lost 21 | . . . 12 9 Power 4 | . . . 2 2 Propulsion 9 | . . . 6 3 Utility 4 | . . . 2 2 Weapon 4 | . . . 2 2 Highest Loss Streak 6 | . . . 6 4 To Critical Strikes . | . . . . . Average Backups 13 | 3 7 9 12 18 Power 1 | . . . 2 2 Propulsion 1 | 2 3 2 1 1 Utility 5 | . 1 4 6 8 Weapon 3 | . 1 2 2 5 Tool/Special . | . . . . . Unused Backups 28 | . 4 1 3 20 Power 3 | . . . . 3 Propulsion 6 | . 3 . 1 2 Utility 11 | . . 1 1 9 Weapon 7 | . 1 . 1 5 Tool/Special 1 | . . . . 1 Average Slot Usage (%) 88 | . 100 100 87 77 Engine 9 | . 14 10 9 7 Treads 19 | . 9 28 22 20 Leg 1 | . . . 4 . Wheel 3 | . 18 . . . Device 11 | . 14 14 12 9 Storage 11 | . 14 14 11 9 Processor 2 | . . . . 9 Protection 5 | . . . 8 7 Energy Cannon 2 | . 7 9 . . Ballistic Gun 6 | . 11 . 3 7 Ballistic Cannon 2 | . . . 2 4 Launcher 2 | . . 4 6 . Impact Weapon 4 | . 9 14 2 . Peak Build Rating 20 | 7 8 11 14 20 Average Rating 11 | 5 7 9 10 16 On Entrance 8 | . 7 8 11 14 Naked Turns . | . . . . . Heaviest Build 59 | 15 32 32 59 58 Greatest Support 60 | 32 40 40 60 60 Greatest Overweight (x) 17 | 2 . . 5 17 Average Overweight (x) . | . . . . . Largest Inventory Capacity 20 | 8 15 15 20 20 Average Capacity 15 | 7 8 15 17 19 Most Carried 20 | 8 8 13 15 20 Average Carried 13 | 3 7 9 12 18 Final Capacity 20 | 8 15 15 15 20 Final Carried 18 | 7 8 13 15 18 Class Distribution -------------------- 60% | Mutant 39% | Scavenger-Mutant Dominant Class ---------------- Mutant | -10/Materials Mutant | -10/Mines Mutant | -9/Materials Scavenger-Mutant | -8/Materials Resources | -11 -10 -10 -9 -8 ----------- Run | Yrd Mat Min Mat Mat Matter Collected 1921 | 211 275 499 623 313 Remotely . | . . . . . Salvage Created 2040 | 66 615 59 694 606 Parts 139 | 5 32 6 58 38 Haulers Intercepted 4 | . 2 . 1 1 Recyclers Shooed 2 | 1 . . 1 . Parts Field Recycled . | . . . . . Retrieved Matter . | . . . . . Parts Self-Destructed . | . . . . . Prevented . | . . . . . Kills | -11 -10 -10 -9 -8 ------- Run | Yrd Mat Min Mat Mat Combat Hostiles Destroyed 52 | . 12 2 23 15 Melee 5 | . . . 5 . Guns 16 | . 4 . . 12 Cannons 13 | . 8 . 2 3 AOE 17 | . . 2 15 . Classes Destroyed 14 | 2 6 . 3 3 Worker 3 | . 1 . 2 . Builder 6 | . 4 . 1 1 Tunneler 1 | 1 . . . . Hauler 4 | . 2 . 1 1 Recycler 3 | 1 1 . 1 . Mechanic 2 | . . . 2 . Operator 1 | . . . 1 . Watcher 4 | . 1 . 2 1 Swarmer 18 | . 6 . 9 3 Cutter 3 | . . . . 3 Grunt 19 | . 6 2 8 3 Sentry 9 | . . . 6 3 Specialist 2 | . . . . 2 Hunter 1 | . . . . 1 Best Kill Streak 5 | 2 5 2 5 5 Combat Bots Only 4 | . 4 2 4 4 Max Kills in Single Turn 3 | 1 1 2 3 1 Gunslinging . | . . . . . Exploded 3 | . . 2 3 . Melee 1 | . . . 1 . Uniques/NPCs Destroyed . | . . . . . Combat | -11 -10 -10 -9 -8 -------- Run | Yrd Mat Min Mat Mat Hostile Shots Fired 383 | . 66 5 136 176 Missed 121 | . 22 3 34 62 Hits 262 | . 44 2 102 114 Melee 4 | . . . . 4 Projectile 258 | . 44 2 102 110 Critical Strikes 8 | . 1 . 1 6 Damage Taken 3908 | . 547 55 1310 1996 Core 852 | . 80 17 195 560 Absorbed by Shields . | . . . . . Redirected to Shielding 50 | . . . . 50 Regen/Repaired (Parts) 91 | . . . . 91 Core Remaining (%) 70 | 100 . 61 51 . Volleys Fired 167 | 4 41 8 59 55 Largest 2 | 2 2 1 2 2 Hottest 110 | 40 60 60 60 110 Shots Fired 252 | 8 57 8 69 110 Gun 137 | 8 33 . 10 86 Cannon 75 | . 24 7 20 24 Launcher 40 | . . 1 39 . Special . | . . . . . Kinetic 137 | 8 33 . 20 76 Thermal 75 | . 24 7 10 34 Explosive 40 | . . 1 39 . Electromagnetic . | . . . . . Robot Hit Streak 11 | 4 10 5 6 11 Robot Miss Streak 4 | 2 2 2 4 4 Penetration Max . | . . . . . Secondary Targets 1 | . . . . 1 Max Gunslinging Chain 1 | . . . . 1 Shots Hit Robots 173 | 5 50 4 40 74 Core Hits 95 | 2 19 3 47 24 Critical Kills 3 | . 2 . 1 . Critical Parts Destroyed 3 | . 1 . 2 . Critical Strikes 12 | . 3 . 4 5 Burn 3 | . . . . 3 Destroy 1 | . 1 . . . Blast 2 | . . . . 2 Smash 6 | . 2 . 4 . Melee Attacks 42 | . 27 . 15 . Impact 42 | . 27 . 15 . Slashing . | . . . . . Piercing . | . . . . . Sneak Attacks 7 | . 6 . 1 . Combat Hostiles . | . . . . . Follow-up Attacks . | . . . . . Damage Inflicted 4931 | 70 1284 125 2050 1402 Guns 1551 | 70 321 . 98 1062 Cannons 885 | . 244 68 233 340 Explosions 1402 | . . 57 1345 . Melee 1043 | . 713 . 330 . Ramming 50 | . 6 . 44 . Kinetic 1456 | 70 321 . 209 856 Thermal 980 | . 244 68 122 546 Explosive 1402 | . . 57 1345 . Electromagnetic . | . . . . . Impact 1043 | . 713 . 330 . Slashing . | . . . . . Piercing . | . . . . . Highest Corruption 2 | . 2 2 . . Average Corruption 1 | . 1 2 . . Corruption Purged . | . . . . . Corruption Blocked . | . . . . . Effects 11 | . 5 6 . . Message Errors 4 | . 1 3 . . Matter Fused 5 | . 4 1 . . Energy Discharges 1 | . . 1 . . Data Loss (minor) 1 | . . 1 . . Overload Shots . | . . . . . Overflow Damage 544 | . 357 . 187 . Projectiles . | . . . . . Explosions 13 | . . . 13 . Melee 531 | . 357 . 174 . Knockbacks 8 | . 4 . 1 3 Impact 4 | . 3 . 1 . Kinetic 3 | . . . . 3 Secondary 1 | . 1 . . . Self-Inflicted Damage 188 | . 6 . 182 . Shots 9 | . . . 9 . Rammed 6 | . . . 6 . Targets Rammed 12 | . . . 12 . Kicked 3 | . . . 3 . Crushed 3 | . . . 3 . Highest Temperature 240 | 6 240 80 81 81 Average Temperature 50 | 6 84 29 31 24 Received Heat Transfer 909 | . 189 33 264 423 Siege Activations . | . . . . . Martial Activations . | . . . . . Shielding Activations . | . . . . . Robots Disrupted . | . . . . . Combat Hostiles . | . . . . . Robots Corrupted 6 | . 4 . 2 . Combat Hostiles 1 | . . . 1 . Parts Fried 16 | . 15 . 1 . Impact Corruptions 16 | . 10 . 6 . Robots Melted . | . . . . . Combat Hostiles . | . . . . . Parts Melted 3 | . 3 . . . Heat Transferred 2146 | . 518 148 259 1221 Parts Sabotaged . | . . . . . Parts Stolen . | . . . . . Parts Stripped . | . . . . . Power Chain Reactions . | . . . . . Alert | -11 -10 -10 -9 -8 ------- Run | Yrd Mat Min Mat Mat Maximum Alert Level 2 | . 1 . 2 1 Low Security (%) 69 | 100 72 100 29 96 Level 1 20 | . 27 . 39 3 Level 2 10 | . . . 31 . Level 3 . | . . . . . Level 4 . | . . . . . Level 5 . | . . . . . High Security . | . . . . . Max Security . | . . . . . Peak Influence 500 | 5 239 88 500 206 Initial 186 | . . 80 . 186 Average 161 | 1 102 43 273 131 Influence Increases 2131 | 10 439 123 1024 535 Destroy 0b10 Robot/C 1080 | . 240 80 460 300 Destroy 0b10 Robot/NC 120 | 10 45 . 50 15 Destroy Leader 286 | . 46 20 136 84 Allied During Kill 3 | . . 3 . . Trap Triggered on 0b10 20 | . . . 20 . Successful Hack 67 | . 18 . 36 13 Disable Machine 210 | . . . 150 60 Destroy Structure 195 | . 15 5 172 3 Lose Combat Pursuer 150 | . 75 15 . 60 Influence Decreases 1952 | 10 232 330 582 798 Entered New Map 383 | . . 127 . 256 Time Decay 1351 | 10 232 195 462 452 Lost Part 210 | . . . 120 90 Lost Ally 8 | . . 8 . . Squads Dispatched 10 | . 1 1 5 3 Investigation 2 | . . . 1 1 Extermination . | . . . . . Reinforcement 7 | . 1 . 4 2 Assault 1 | . . 1 . . Garrison . | . . . . . Intercept . | . . . . . Searches Triggered . | . . . . . Construction Impeded 1 | . . . 1 . Haulers Reinforced . | . . . . . Active Scanning Responses . | . . . . . Cargo Convoy Interrupts . | . . . . . Stealth | -11 -10 -10 -9 -8 --------- Run | Yrd Mat Min Mat Mat Distress Signals 7 | . . . 3 4 Communications Jammed . | . . . . . Distress Signals . | . . . . . Times Spotted 83 | . 21 4 30 28 Peak Tracking Total 7 | . 7 2 4 7 Tactical Retreats 8 | . 3 1 . 4 Traps | -11 -10 -10 -9 -8 ------- Run | Yrd Mat Min Mat Mat Traps Triggered 3 | . 1 . 2 . Indirectly . | . . . . . Trap Hack Attempts . | . . . . . Triggered . | . . . . . Disarmed 3 | . . . . 3 Reprogrammed 9 | . 5 . 4 . Reused 2 | . . . 2 . Traps Extracted . | . . . . . Installed . | . . . . . Triggered 2 | . . . 2 . Machines | -11 -10 -10 -9 -8 ---------- Run | Yrd Mat Min Mat Mat Machines Disabled 14 | . . . 10 4 Max in Single Turn 3 | . . . 3 1 Machines Repaired . | . . . . . Machines Dismantled . | . . . . . Machines Sabotaged . | . . . . . Overloaded Fab Kills . | . . . . . Hacking | -11 -10 -10 -9 -8 --------- Run | Yrd Mat Min Mat Mat Machines Accessed 12 | . 4 . 5 3 Terminals 8 | . 3 . 3 2 Fabricators . | . . . . . Repair Stations 3 | . 1 . 1 1 Recycling Units . | . . . . . Scanalyzers 1 | . . . 1 . Garrison Access . | . . . . . Total Hacks 68 | . 12 . 45 11 Successful 47 | . 6 . 34 7 Failed 21 | . 6 . 11 4 Catastrophic 4 | . 1 . 3 . Database Lockouts . | . . . . . Manual 18 | . 3 . 15 . Terminals 38 | . 11 . 21 6 Fabricators . | . . . . . Repair Stations 8 | . 1 . 2 5 Recycling Units . | . . . . . Scanalyzers 22 | . . . 22 . Garrison Access . | . . . . . Terminal Hacks 17 | . 4 . 10 3 Record 1 | . . . 1 . Robot Analysis 3 | . . . 2 1 Terminal Index 2 | . . . 2 . Locate Traps 1 | . 1 . . . Disarm Traps 1 | . . . . 1 Reprogram Traps 2 | . 1 . 1 . Maintenance Status 1 | . . . 1 . Security Status 1 | . . . 1 . Hauler Manifests 2 | . 1 . 1 . Zone Layout 3 | . 1 . 1 1 Fabricator Hacks . | . . . . . Repair Station Hacks 5 | . 1 . . 4 Scan Component 3 | . 1 . . 2 Repair 2 | . . . . 2 Recycling Unit Hacks . | . . . . . Scanalyzer 21 | . . . 21 . Insert Component 11 | . . . 11 . Analyze 10 | . . . 10 . Garrison Access Hacks . | . . . . . Unauthorized Hacks 4 | . 1 . 3 . Terminals 4 | . 1 . 3 . Botnet 4 | . 1 . 3 . Fabricators . | . . . . . Repair Stations . | . . . . . Recycling Units . | . . . . . Scanalyzers . | . . . . . Garrison Access . | . . . . . Data Cores Recovered . | . . . . . Used . | . . . . . Hacking Detections 10 | . 3 . 5 2 Full Trace Events 2 | . 1 . . 1 Feedback Events . | . . . . . Feedback Blocked . | . . . . . Robot Schematics Acquired . | . . . . . Robots Built . | . . . . . Authchips . | . . . . . Time . | . . . . . Total Robot Build Rating . | . . . . . Part Schematics Acquired 9 | . . . 9 . Parts Built . | . . . . . Authchips . | . . . . . Time . | . . . . . Total Part Build Rating . | . . . . . Parts Repaired 2 | . . . . 2 Time 52 | . . . . 52 Parts Recycled . | . . . . . Recycled Matter . | . . . . . Retrieved Matter . | . . . . . Retrieved Components . | . . . . . Parts Scanalyzed 10 | . . . 10 . Part Schematics Acquired 9 | . . . 9 . Parts Damaged . | . . . . . Bothacking | -11 -10 -10 -9 -8 ------------ Run | Yrd Mat Min Mat Mat Used RIF Installer . | . . . . . Robots Hacked . | . . . . . Non-combat . | . . . . . Combat . | . . . . . Robot Hacks Applied . | . . . . . Relay Couplers Released . | . . . . . Fabnet Peak Effective % . | . . . . . Robots Rewired . | . . . . . Allies Hacked . | . . . . . Hacks Repelled . | . . . . . Allies | -11 -10 -10 -9 -8 -------- Run | Yrd Mat Min Mat Mat Total Allies 1 | . . 1 . . Largest Group 1 | . . 1 . . Highest-Rated Group 31 | . . 31 . . Highest-Rated Ally 31 | . . 31 . . Total Orders . | . . . . . Ally Attacks 13 | . . 13 . . Total Damage 128 | . . 128 . . Kills 2 | . . 2 . . Allies Corrupted . | . . . . . Allies Melted . | . . . . . Intel | -11 -10 -10 -9 -8 ------- Run | Yrd Mat Min Mat Mat Active Infowar (turns) 3441 | 13 637 431 1235 1125 Structural 2357 | . . . 1232 1125 Seismic 1261 | 13 637 431 180 . Machine Analysis 1125 | . . . . 1125 Robot Analysis Total 3 | . . . 2 1 Derelict Logs Recovered 1 | . . 1 . . Drone Launches . | . . . . . Drone Recoveries . | . . . . . Exploration | -11 -10 -10 -9 -8 ------------- Run | Yrd Mat Min Mat Mat Turns Passed 3566 | 81 694 431 1235 1125 Spaces Moved 1607 | 50 372 245 507 433 Core 19 | 7 . . . 12 Treads 1235 | . 125 245 444 421 Legs 63 | . . . 63 . Wheels 290 | 43 247 . . . Hover . | . . . . . Flight . | . . . . . Fastest Speed 50 | 50 100 160 160 160 Average Speed 171 | 100 120 160 193 204 Slowest Speed 900 | 150 160 160 470 900 Overloaded Moves . | . . . . . Propulsion Burnouts . | . . . . . Robots Hopped . | . . . . . Potential Cave-ins . | . . . . . Cave-ins Triggered . | . . . . . Exploration Rate (%) 42 | 5 64 51 48 45 Regions Visited 4 Branch Regions 1 Pre-discovered Areas . | . . . . . Known Exits Taken . | . . . . . Unknown Exits Taken 4 | 1 1 1 1 . Scrap Searched . | . . . . . Spaces Dug 41 | . 13 . 28 . Terrain Destroyed 194 | . 13 5 175 1 Melee 18 | . 13 . 5 . Projectile 1 | . . . . 1 AOE 175 | . . 5 170 . Terrain Rammed 1 | . 1 . . . Walls Destroyed . | . . . . . Machines Disabled . | . . . . . Actions | -11 -10 -10 -9 -8 --------- Run | Yrd Mat Min Mat Mat Total 2067 | 69 510 276 649 563 Wait 110 | . 44 14 10 42 Move 1603 | 49 371 244 506 433 Hop . | . . . . . Pick Up 51 | 8 8 6 14 15 Fast Attach 15 | 7 1 . 5 2 Attach 17 | . 1 . 11 5 Detach 3 | . 1 . 2 . Swap 21 | . 6 2 9 4 Drop 25 | 1 9 2 6 7 Fire 167 | 4 41 8 59 55 Melee 42 | . 27 . 15 . Ram 1 | . 1 . . . Kick 3 | . . . 3 . Crush 9 | . . . 9 . Escape Stasis . | . . . . . Rewire . | . . . . . Trap . | . . . . . Miscellaneous . | . . . . . Route ------- -11/Scrapyard -10/Materials (discovered 3 exits: *Mat x2 / [*Min]) -10/Mines -9/Materials (discovered 2 exits: *Mat x2) -8/Materials History --------- Turn | Location | Event 4 | -11/Scrapyard | Discovered new exit (range 15) 82 | -11/Scrapyard | Entered Materials 194 | -10/Materials | Discovered new exit (range 4) 324 | -10/Materials | Build established: Mutant 581 | -10/Materials | Discovered new exit (range 4) 749 | -10/Materials | Discovered new exit (range 9) 776 | -10/Materials | Entered Mines 777 | -10/Mines | Met a Derelict testing a Signal Generator 848 | -10/Mines | Received a Rocket Launcher from a helpful Derelict 851 | -10/Mines | Met a Derelict bent on vengeance 1172 | -10/Mines | Discovered new exit (range 15) 1176 | -10/Mines | Learned Materials emergency access door positions 1207 | -10/Mines | Entered Materials 1207 | -9/Materials | Evolved 2 slots: Propulsion x1, Utility x1 1426 | -9/Materials | Lost 6 parts (2p2n1u1w) 1561 | -9/Materials | Lost 3 parts (2n1w) 1696 | -9/Materials | Discovered new exit (range 16) 2208 | -9/Materials | Discovered new exit (range 16) 2442 | -9/Materials | Entered another Materials area 2442 | -8/Materials | Evolved 2 slots: Propulsion x1, Utility x1 2484 | -8/Materials | Repaired Grenade Launcher? 2544 | -8/Materials | Build established: Scavenger-Mutant 2608 | -8/Materials | Repaired Lgt. Treads 3421 | -8/Materials | Core integrity fell below 50% 3444 | -8/Materials | Lost 4 parts (1p1u2w) 3551 | -8/Materials | Core integrity fell below 20% 3567 | -8/Materials | Destroyed by G-47 Trooper with Particle Gun Last Messages --------------- 03426_ U-05 Engineer builds a Wall. 03429_ Acquired Arm. Treads. 03539_ ALERT: Suspicious intruders detected, dispatching Cutter reinforcements to area. 03554_ Arm. Treads severed. 03554_ C-17 Slicer suffers critical hit (Burn). 03554_ C-17 Slicer destroyed. 03554_ Switching to secondary target: Y-45 Defender. 03555_ K-01 Serf collects debris. 03557_ Slug penetrates Y-45 Defender. 03557_ Y-45 Defender destroyed. 03557_ C-17 Slicer destroyed. 03559_ K-01 Serf collects debris. 03559_ U-05 Engineer builds a Wall. 03560_ C-17 Slicer destroyed. 03561_ K-01 Serf collects debris. 03562_ Slug penetrates Wall. 03566_ K-01 Serf collects debris. 03567_ U-05 Engineer builds a Wall. 03567_ K-01 Serf collects debris. Map ----- +----------------------------------------------------+ | ##??????????????????????????????????????????????? | | ########## ? ##?????????????????????????????????? | | +########## ##?????????????????????????????????? | | ##?????????????????????????????????? | | ##?????????????????????????????????? | | ##?????????????????????????????????? | | +######### ####?????????????????????????????????? | | ####### ####?????????????????????????????????? | | ##????????????????????????????????????????????? | | "" ##????????????????????????????"""?"""?????????? | | "" ##????????????????????????????"""?"""?????????? | | "" ##????????????????????????????"""?"""?????????? | | ##???## ?????????????????????????????????????? | | #####???## ?????????????????????????????????????? | | #####???## ###??????????????????????????????????? | | ????????## ###????????######### ??????????? | | ????????## #???#####################??????????? | | ########## ????####### ##??????????? | | ########## ^##??## + " """"" ##??????????? | | ## ### ###### #### """"""""" ##??????????? | | ### ######+#### """ """ ##??????????? | | ### # #### ####????????? | | ### # ##########+######## ##??? | | ## ### # ## ##??? | | ### #### # ## /%= u g ##??? | | ### #### # ##!k@*% Y ! ##??? | | # #### + ##%*%############## ##??? | | # #### #########//=###############?#####??? | | # #### ## ###!=u###?????????????#####??? | | # #### ##?????## !=##?????????????????????? | | # #### ##?????## [;#?????????????????????? | | # #### ##?????## k ?????????????????????? | | ### #### ##?????## ??????????????????????? | | ### #### ##??""### ?????????????????????? | | ### #### ##??Y"### ##?????????????????????? | | ### #### ## ?""### ##?????????????????????? | | ### #### ## ### ???????????????????????? | | ### ###+### ???????????????????????? | | ### %% H ???????????????????????? | | ### """% % ???????????????????????? | | """ % ???????????????????????? | | """"% ####### ! ???????????????????????? | | """"" % ############???????????????????????? | | ## """% # ##???????????????????????? | | ## #% == ##???????????????????????? | | ## +% == """ ##???????????????????????? | | ## """ %# """ ##???????????????????????? | | ## """"" % # """ ##???????????????????????? | | ## """" ] # ##???????????????????????? | | ## """"" # ##???????????????????????? | +----------------------------------------------------+ Best States ------------- Heat Dissipation 31 Energy Generation 14 Energy Capacity 250 Matter Stores 300 Matter Capacity 300 Sight Range 16 Terrain Scan Density 10 Armor Coverage 225 Utility Shielding 33 Evasion (%) 40 Recoil Reduction 3 Item Schematics ----------------- Hcp. Matter Pod | -9/Materials | Scanalyzed Hcp. Storage Unit | -9/Materials | Scanalyzed Rocket Launcher | -9/Materials | Scanalyzed Ion Engine | -9/Materials | Scanalyzed Imp. Heat Sink | -9/Materials | Scanalyzed Aluminum Leg | -9/Materials | Scanalyzed Lgt. Treads | -9/Materials | Scanalyzed Lgt. Ion Engine | -9/Materials | Scanalyzed Lrg. Matter Pod | -9/Materials | Scanalyzed Robot Schematics ------------------ None Fabricated ------------ Nothing Repaired ---------- Grenade Launcher | 16% | -8/Materials Lgt. Treads | 70% | -8/Materials Alien Tech Used ----------------- None Achievements -------------- Part-time Excavator Power Corrupts root@ Challenges ------------ None Game ------ Seed FocalSubdwellerCutter Manual? 0 Play Time 00:52:51 Cumulative 5.5 hours Start 2025.05.09 @ 08:31:47 End 2025.05.09 @ 09:24:55 Sessions 1 Manual Loads 0 Difficulty Rogue Special Mode None Game No. 7 Rogue 7 Adventurer 0 Explorer 0 Win Type - Total 0 Types 0/0/0/0/0/0/0/0/0/0 Lore% 4 Gallery% 7 Achievement% 10 Wizard Run 0 Options --------- Layout 0 ASCII 0 Keyboard 0 Movement Numpad Keybinds 0 Fullscreen 1 Font 24/Smallcaps Map View 76x50 Zoom Use 5% Tactical HUD 1 Map Filters NONE Filters NONE Steam 1 RUN: 898730f1-e8c4-4d48-9289-8828a07c578f